bitfinex-derivatives/quotes_SOLF0:USTF0_20250606
["timestamp","ask_amount","ask_price","bid_price","bid_amount"]
[1749173385144,20.83505762,145.13,145.12,8.937e-05]
[1749173385350,25.47764273,145.13,145.12,8.937e-05]
[1749173385543,20.8350564,145.13,145.12,8.937e-05]
[1749173385844,22.59323272,145.13,145.12,8.937e-05]
[1749173386347,25.48414431,145.13,145.12,8.937e-05]
[1749173386544,22.59390322,145.13,145.12,8.937e-05]
[1749173386748,22.59385762,145.13,145.12,8.937e-05]
[1749173387246,17.94509377,145.13,145.12,8.937e-05]
[1749173387444,25.48435924,145.13,145.12,8.937e-05]
[1749173387649,25.48467274,145.13,145.12,8.937e-05]
[1749173387846,25.4846709,145.13,145.12,8.937e-05]
[1749173388650,25.48462066,145.13,145.12,8.937e-05]
[1749173388850,22.59417209,145.13,145.12,8.937e-05]
[1749173389044,25.48138342,145.13,145.12,8.937e-05]
[1749173389348,25.48135333,145.13,145.12,8.937e-05]
[1749173389552,20.83222598,145.13,145.12,8.937e-05]
[1749173389742,25.4813059,145.13,145.12,8.937e-05]
[1749173389948,20.50464429,145.13,145.12,8.937e-05]
[1749173390447,20.50688497,145.13,145.12,8.937e-05]
[1749173390645,20.50688418,145.13,145.12,8.937e-05]
[1749173390843,20.50696453,145.13,145.12,8.937e-05]
[1749173391052,20.50963232,145.13,145.12,8.937e-05]
[1749173391250,20.50959954,145.13,145.12,8.937e-05]
[1749173391446,20.50927237,145.13,145.12,8.937e-05]
[1749173391647,15.85699715,145.13,145.12,8.937e-05]
[1749173391849,12.96843216,145.13,145.12,8.937e-05]
[1749173392448,20.51151931,145.13,145.12,8.937e-05]
[1749173392648,15.85808717,145.13,145.12,8.937e-05]
[1749173392844,20.511342,145.13,145.12,8.937e-05]
[1749173393048,15.8580663,145.13,145.12,8.937e-05]
[1749173393351,17.62183122,145.13,145.12,8.937e-05]
[1749173393550,17.62183067,145.13,145.12,8.937e-05]
[1749173393750,15.86439927,145.13,145.12,8.937e-05]
[1749173393951,15.8643995,145.13,145.12,8.937e-05]
[1749173394152,20.51783067,145.13,145.12,8.937e-05]
[1749173394751,20.51839251,145.13,145.12,8.937e-05]
[1749173394953,55.31839251,145.13,145.12,8.937e-05]
[1749173395151,50.66493207,145.13,145.12,8.937e-05]
[1749173395356,52.42126831,145.13,145.12,8.937e-05]
[1749173395545,55.31777114,145.13,145.12,8.937e-05]
[1749173395854,55.31775292,145.13,145.12,8.937e-05]
[1749173396953,50.6690701,145.13,145.12,8.937e-05]
[1749173397148,55.33914805,145.13,145.12,8.937e-05]
[1749173397348,55.33920653,145.13,145.12,8.937e-05]
[1749173397556,55.33921828,145.13,145.12,8.937e-05]
[1749173398656,50.66947263,145.13,145.12,8.937e-05]
[1749173398953,52.4395142,145.13,145.12,8.937e-05]
[1749173399156,55.34056507,145.13,145.12,8.937e-05]
[1749173399355,47.76843216,145.13,145.12,8.937e-05]
[1749173399556,55.34098032,145.13,145.12,8.937e-05]
[1749173400057,55.34107734,145.13,145.12,8.937e-05]
[1749173400353,55.3412015,145.13,145.12,8.937e-05]
[1749173400653,48.45418176,145.13,145.12,8.937e-05]
[1749173400847,37.37463216,145.13,145.12,8.937e-05]
[1749173401046,10.14972235,145.13,145.12,8.937e-05]
[1749173401247,13.33778554,145.13,145.12,8.937e-05]
[1749173401658,10.43650562,145.13,145.12,8.937e-05]
[1749173401864,12.64979535,145.13,145.12,8.937e-05]
[1749173402058,20.23041078,145.13,145.12,8.937e-05]
[1749173402360,20.2319803,145.13,145.12,8.937e-05]
[1749173402551,17.32772112,145.13,145.12,8.937e-05]
[1749173402756,20.23196597,145.13,145.12,8.937e-05]
[1749173403252,17.04390278,145.13,145.12,8.937e-05]
[1749173403857,17.04500066,145.13,145.12,8.937e-05]
[1749173404259,10.15797146,145.13,145.12,8.937e-05]
[1749173404458,2.57463216,145.13,145.12,8.937e-05]
[1749173406356,2.57463216,145.13,145.12,6.88768937]
[1749173406960,2.57463216,145.13,145.12,8.937e-05]
[1749173407559,9.46173216,145.13,145.12,8.937e-05]
[1749173409061,14.15555519,145.13,145.12,8.937e-05]
[1749173409262,17.08019814,145.13,145.12,8.937e-05]
[1749173410367,12.38721903,145.13,145.12,8.937e-05]
[1749173410662,14.17891394,145.13,145.12,8.937e-05]
[1749173410863,7.29181394,145.13,145.12,8.937e-05]
[1749173411070,10.21709118,145.13,145.12,8.937e-05]
[1749173411365,7.29210736,145.13,145.12,8.937e-05]
[1749173411967,2.57463216,145.13,145.12,8.937e-05]
[1749173412164,7.29114916,145.13,145.12,8.937e-05]
[1749173412365,7.29123591,145.13,145.12,8.937e-05]
[1749173412569,10.21509891,145.13,145.12,8.937e-05]
[1749173412767,17.10218226,145.13,145.12,8.937e-05]
[1749173413761,17.10225442,145.13,145.12,8.937e-05]
[1749173413964,17.10186091,145.13,145.12,8.937e-05]
[1749173414165,17.0987503,145.13,145.12,8.937e-05]
[1749173414361,17.09873489,145.13,145.12,8.937e-05]
[1749173414565,14.17821398,145.13,145.12,8.937e-05]
[1749173414773,17.09884865,145.13,145.12,8.937e-05]
[1749173414965,21.81506946,145.13,145.12,8.937e-05]
[1749173415268,17.09858764,145.13,145.12,8.937e-05]
[1749173415463,10.21148764,145.13,145.12,8.937e-05]
[1749173415660,7.29085297,145.13,145.12,8.937e-05]
[1749173415863,5.49443462,145.13,145.12,8.937e-05]
[1749173416074,2.57463216,145.13,145.12,8.937e-05]
[1749173416672,9.46173216,145.13,145.12,8.937e-05]
[1749173417671,17.08636702,145.13,145.12,8.937e-05]
[1749173418367,17.08651159,145.13,145.12,8.937e-05]
[1749173418773,9.46173216,145.13,145.12,8.937e-05]
[1749173419074,2.57463216,145.13,145.12,8.937e-05]
[1749173419774,9.46173216,145.13,145.12,8.937e-05]
[1749173420474,2.57463216,145.13,145.12,8.937e-05]
[1749173422375,9.46173216,145.13,145.12,8.937e-05]
[1749173422776,17.09632792,145.13,145.12,8.937e-05]
[1749173422978,17.09585671,145.13,145.12,8.937e-05]
[1749173423275,20.28476129,145.13,145.12,8.937e-05]
[1749173423974,17.36189425,145.13,145.12,8.937e-05]
[1749173424176,15.5745414,145.13,145.12,8.937e-05]
[1749173424875,20.28584225,145.13,145.12,8.937e-05]
[1749173425670,15.57433862,145.13,145.12,8.937e-05]
[1749173425976,17.36709781,145.13,145.12,8.937e-05]
[1749173426277,20.29031021,145.13,145.12,8.937e-05]
[1749173426574,17.36713351,145.13,145.12,8.937e-05]
[1749173426773,20.29023458,145.13,145.12,8.937e-05]
[1749173426976,20.2902343,145.13,145.12,8.937e-05]
[1749173427276,20.29201127,145.13,145.12,8.937e-05]
[1749173427576,20.29174516,145.13,145.12,8.937e-05]
[1749173427776,20.29168707,145.13,145.12,8.937e-05]
[1749173428074,15.56798388,145.13,145.12,8.937e-05]
[1749173428271,17.37011377,145.13,145.12,8.937e-05]
[1749173428473,12.65080833,145.13,145.12,8.937e-05]
[1749173428773,20.28842304,145.13,145.12,8.937e-05]
[1749173429274,17.0996347,145.13,145.12,8.937e-05]
[1749173429474,9.46173216,145.13,145.12,8.937e-05]
[1749173429868,2.57463216,145.13,145.12,8.937e-05]
[1749173436381,2.57463216,145.13,145.12,3.18916554]
[1749173436682,2.57463216,145.13,145.12,8.937e-05]
[1749173440291,6.44188973,145.19,145.12,3.18916554]
[1749173440488,7.64304218,145.18,145.16,3.18907617]
[1749173440788,140.41119819,145.2,145.17,3.18907617]
[1749173440987,7.64283834,145.19,145.17,10.07427617]
[1749173441188,41.624,145.2,145.17,10.07427617]
[1749173441481,2.9235732,145.19,145.17,10.12113772]
[1749173441688,37.98041725,145.2,145.17,10.12113772]
[1749173441877,7.64840865,145.19,145.17,0.04686155]
[1749173442077,37.98041725,145.2,145.17,0.00149617]
[1749173442078,10.83748482,145.18,145.17,0.00149617]
[1749173442282,10.83829889,145.18,145.17,0.00149617]
[1749173442785,17.72314878,145.18,145.17,0.00149617]
[1749173442987,12.99877424,145.18,145.17,0.00149617]
[1749173443376,13.0124947,145.18,145.17,0.00149617]
[1749173443578,14.79537419,145.18,145.17,0.00149617]
[1749173443778,13.01236867,145.18,145.17,0.00149617]
[1749173443990,17.73391495,145.18,145.17,0.00149617]
[1749173444288,17.73557484,145.18,145.17,0.00149617]
[1749173444685,17.73556231,145.18,145.17,0.00149617]
[1749173445085,10.07387617,145.18,145.17,0.00149617]
[1749173445287,14.54656292,145.18,145.17,0.00149617]
[1749173445487,11.60632799,145.18,145.17,0.00149617]
[1749173445686,14.54666176,145.18,145.17,0.00149617]
[1749173446189,19.52707918,145.18,145.17,0.00149617]
[1749173446391,19.52596011,145.18,145.17,0.00149617]
[1749173446687,16.58674541,145.18,145.17,0.00149617]
[1749173446882,19.52596092,145.18,145.17,0.00149617]
[1749173447080,19.54253482,145.18,145.17,0.00149617]
[1749173447285,14.80450147,145.18,145.17,0.00149617]
[1749173447589,21.24675029,145.18,145.17,0.00149617]
[1749173447787,25.98483416,145.18,145.17,0.00149617]
[1749173447988,6.8878,145.12,145.1,9.37861742]
[1749173448890,6.93305872,145.12,145.1,9.42344009]
[1749173453189,6.93305872,145.12,145.1,0.04482267]
[1749173453190,6.8881,145.11,145.1,0.04482267]
[1749173453389,12.99906733,145.11,145.1,0.04482267]
[1749173457198,6.8881,145.11,145.1,0.04482267]
[1749173457495,13.00369233,145.11,145.1,0.04482267]
[1749173458897,6.11559233,145.11,145.1,0.04482267]
[1749173459198,6.93285872,145.12,145.1,0.04482267]
[1749173460298,0.04525872,145.12,145.1,0.04482267]
[1749173460494,0.04525872,145.12,145.11,4.98041742]
[1749173460700,6.43507027,145.17,145.11,4.98041742]
[1749173460991,9.03179743,145.16,145.11,4.98041742]
[1749173461197,6.11512792,145.15,145.11,4.98041742]
[1749173461498,4.98041742,145.17,145.12,6.8872]
[1749173461794,9.07505261,145.16,145.13,0.04957503]
[1749173462001,6.11333923,145.15,145.13,0.04957503]
[1749173462297,6.11333923,145.14,145.13,0.04957503]
[1749173462996,40.85333923,145.14,145.13,0.04957503]
[1749173463198,50.65612588,145.14,145.13,0.04957503]
[1749173463396,47.74003923,145.14,145.13,0.04957503]
[1749173464204,55.38175481,145.14,145.13,0.04957503]
[1749173464398,50.66600617,145.14,145.13,0.04957503]
[1749173464603,55.38151368,145.14,145.13,0.04957503]
[1749173464900,45.5688346,145.14,145.13,0.04957503]
[1749173465098,40.85333923,145.14,145.13,0.04957503]
[1749173465594,6.11333923,145.14,145.13,0.04957503]
[1749173465798,0.04527727,145.16,145.13,0.04957503]
[1749173466101,6.12265713,145.15,145.13,0.04957503]
[1749173466400,6.12265713,145.14,145.13,0.04957503]
[1749173469100,6.12265713,145.14,145.13,6.93667503]
[1749173469599,6.93127727,145.16,145.13,6.93667503]
[1749173469801,0.04527727,145.16,145.14,4.98041742]
[1749173470203,7.64536066,145.19,145.18,6.8848]
[1749173470406,6.12196463,145.19,145.18,11.86521742]
[1749173470606,34.72,145.2,145.18,11.86521742]
[1749173471403,34.76514072,145.2,145.18,11.91257876]
[1749173472506,0.04514072,145.2,145.18,11.91257876]
[1749173472811,0.04514072,145.2,145.19,6.8843]
[1749173476111,0.04514072,145.2,145.18,11.91237876]
[1749173476308,0.04514072,145.2,145.18,6.93196134]
[1749173476511,0.04514072,145.2,145.18,0.04736134]
[1749173477818,0.04514072,145.2,145.18,6.93206134]
[1749173482326,0.04514072,145.2,145.18,0.04736134]
[1749173483223,0.04514072,145.2,145.19,4.98041742]
[1749173484127,0.04514072,145.2,145.19,11.86471742]
[1749173484825,0.04514072,145.2,145.18,5.02777876]
[1749173485827,0.04514072,145.2,145.18,0.04736134]
[1749173487029,6.92934072,145.2,145.18,0.04736134]
[1749173487928,47.70186749,145.19,145.18,0.04736134]
[1749173489123,40.81756749,145.19,145.18,0.04736134]
[1749173491632,43.7532973,145.19,145.18,0.04736134]
[1749173491932,48.49194763,145.19,145.18,0.04736134]
[1749173492133,45.55629963,145.19,145.18,0.04736134]
[1749173492332,40.81756749,145.19,145.18,0.04736134]
[1749173492635,45.55631751,145.19,145.18,0.04736134]
[1749173492934,40.81756749,145.19,145.18,0.04736134]
[1749173493129,43.75431821,145.19,145.18,0.04736134]
[1749173493328,40.81756749,145.19,145.18,0.04736134]
[1749173493528,34.7,145.19,145.18,0.04736134]
[1749173494435,34.7,145.19,145.18,6.93216134]
[1749173498938,0.04514072,145.2,145.19,6.8843]
[1749173504343,34.68,145.22,145.21,6.8833]
[1749173504645,34.66,145.25,145.21,6.8833]
[1749173504844,6.1277144,145.24,145.22,6.8828]
[1749173505141,41.5415,145.25,145.22,6.8828]
[1749173505343,6.12772627,145.24,145.23,6.8824]
[1749173505539,6.12772627,145.24,145.22,0.04777328]
[1749173505731,34.70699343,145.25,145.22,0.04777328]
[1749173505933,6.13210804,145.24,145.22,0.04777328]
[1749173506135,34.70699343,145.25,145.23,6.8821]
[1749173506334,6.13210804,145.24,145.23,6.8821]
[1749173506942,34.70699343,145.25,145.23,6.8821]
[1749173507143,6.13311675,145.24,145.23,6.8821]
[1749173507343,34.70699343,145.25,145.22,0.04777328]
[1749173507649,6.13325095,145.24,145.22,0.04777328]
[1749173507846,34.70699343,145.25,145.22,6.93047328]
[1749173508144,6.13337124,145.24,145.22,6.93047328]
[1749173508446,34.70699343,145.25,145.22,6.93047328]
[1749173508745,6.13468414,145.24,145.22,6.93047328]
[1749173508944,34.70699343,145.25,145.22,6.93047328]
[1749173509246,6.13467125,145.24,145.22,6.93047328]
[1749173509449,34.70699343,145.25,145.23,6.8824]
[1749173510946,6.14082704,145.24,145.23,6.8824]
[1749173511944,6.14082704,145.24,145.22,6.93047328]
[1749173512147,34.70699343,145.25,145.22,6.93047328]
[1749173512343,6.14495056,145.24,145.22,0.04777328]
[1749173512545,41.58869343,145.25,145.22,0.04777328]
[1749173512840,6.14563461,145.24,145.22,0.04777328]
[1749173513045,41.58869343,145.25,145.22,0.04777328]
[1749173513348,6.14591153,145.24,145.22,6.93057328]
[1749173513545,41.58869343,145.25,145.22,6.93057328]
[1749173513745,6.14748104,145.24,145.22,6.93057328]
[1749173514047,6.14754434,145.23,145.22,6.93057328]
[1749173515138,41.58869343,145.25,145.22,6.93057328]
[1749173515342,6.1489792,145.24,145.22,6.93057328]
[1749173515539,41.58869343,145.25,145.22,6.93057328]
[1749173515744,13.03068696,145.24,145.22,0.04777328]
[1749173516051,6.14890503,145.23,145.22,0.04777328]
[1749173517652,6.14890503,145.23,145.22,6.93067328]
[1749173519855,41.58859343,145.25,145.22,6.93067328]
[1749173520051,6.14773726,145.24,145.22,6.93067328]
[1749173520355,41.58859343,145.25,145.22,6.93067328]
[1749173520553,6.14749723,145.24,145.22,6.93067328]
[1749173520754,41.58859343,145.25,145.22,6.93067328]
[1749173520955,6.14754081,145.24,145.22,6.93067328]
[1749173521156,41.58859343,145.25,145.22,6.93067328]
[1749173521352,6.14594427,145.24,145.22,6.93067328]
[1749173521551,6.14585392,145.23,145.22,0.04777328]
[1749173521755,34.70699343,145.25,145.22,0.04777328]
[1749173521956,6.14556383,145.24,145.22,0.04777328]
[1749173522152,34.70699343,145.25,145.22,0.04777328]
[1749173522153,6.14556383,145.23,145.22,0.04777328]
[1749173522357,6.14556383,145.23,145.22,6.93067328]
[1749173522857,41.58869343,145.25,145.22,6.93067328]
[1749173523057,6.1452908,145.24,145.22,6.93067328]
[1749173523258,34.70699343,145.25,145.23,6.8823]
[1749173523453,34.70699343,145.25,145.22,0.04777328]
[1749173523660,0.04699343,145.25,145.23,4.98041742]
[1749173523859,0.04699343,145.25,145.24,6.8819]
[1749173527058,0.04699343,145.25,145.23,6.8822]
[1749173527456,0.04699343,145.25,145.22,0.04777328]
[1749173528056,0.04699343,145.25,145.23,6.8824]
[1749173528357,0.04699343,145.25,145.22,0.04777328]
[1749173528558,0.04699343,145.25,145.23,6.882]
[1749173528858,0.04699343,145.25,145.22,0.04777328]
[1749173529259,0.04699343,145.25,145.23,6.8819]
[1749173529460,0.04699343,145.25,145.22,0.04777328]
[1749173529754,0.04699343,145.25,145.23,6.8824]
[1749173529955,0.04699343,145.25,145.22,0.04777328]
[1749173530358,0.04699343,145.25,145.24,6.8819]
[1749173533860,0.04699343,145.25,145.23,6.8822]
[1749173534360,0.04699343,145.25,145.22,0.04777328]
[1749173534557,39.62041742,145.24,145.22,0.04777328]
[1749173534857,6.13697698,145.23,145.22,0.00263256]
[1749173535663,17.81250917,145.23,145.22,0.00263256]
[1749173536464,13.01937698,145.23,145.22,0.00263256]
[1749173536664,17.813655,145.23,145.22,0.00263256]
[1749173536864,17.81365516,145.23,145.22,0.00263256]
[1749173537065,13.01937698,145.23,145.22,0.00263256]
[1749173537366,17.81366327,145.23,145.22,0.00263256]
[1749173537557,13.01937698,145.23,145.22,0.00263256]
[1749173537758,20.71275542,145.23,145.22,0.00263256]
[1749173538065,15.91303253,145.23,145.22,0.00263256]
[1749173538266,17.820855,145.23,145.22,0.00263256]
[1749173538465,20.69876776,145.23,145.22,0.00263256]
[1749173538660,17.820855,145.23,145.22,0.00263256]
[1749173538862,17.8208427,145.23,145.22,0.00263256]
[1749173539262,17.82082464,145.23,145.22,0.00263256]
[1749173539966,13.01937698,145.23,145.22,0.00263256]
[1749173540162,17.82081857,145.23,145.22,0.00263256]
[1749173540963,15.89919967,145.23,145.22,0.00263256]
[1749173541271,15.89919986,145.23,145.22,0.00263256]
[1749173541467,20.67317365,145.23,145.22,0.00263256]
[1749173541670,13.01937698,145.23,145.22,0.00263256]
[1749173541971,20.67317567,145.23,145.22,0.00263256]
[1749173542560,20.66808555,145.23,145.22,0.00263256]
[1749173542766,20.66810328,145.23,145.22,0.00263256]
[1749173543066,13.01937698,145.23,145.22,0.00263256]
[1749173543266,20.66183935,145.23,145.22,0.00263256]
[1749173543570,20.66179645,145.23,145.22,0.00263256]
[1749173543769,20.66180365,145.23,145.22,0.00263256]
[1749173544167,17.78794014,145.23,145.22,0.00263256]
[1749173544373,20.66130031,145.23,145.22,0.00263256]
[1749173544574,15.89349409,145.23,145.22,0.00263256]
[1749173544774,20.66331344,145.23,145.22,0.00263256]
[1749173545875,20.6626907,145.23,145.22,0.00263256]
[1749173546073,20.66272517,145.23,145.22,0.00263256]
[1749173546471,20.66268611,145.23,145.22,0.00263256]
[1749173546875,17.788569,145.23,145.22,0.00263256]
[1749173547076,15.89349409,145.23,145.22,0.00263256]
[1749173547276,20.66268611,145.23,145.22,0.00263256]
[1749173547779,20.66243412,145.23,145.22,0.00263256]
[1749173547974,20.66242703,145.23,145.22,0.00263256]
[1749173548285,20.65926787,145.23,145.22,0.00263256]
[1749173548479,20.65926776,145.23,145.22,0.00263256]
[1749173548778,20.65849689,145.23,145.22,0.00263256]
[1749173549071,17.78784202,145.23,145.22,0.00263256]
[1749173549278,20.65815336,145.23,145.22,0.00263256]
[1749173549478,20.65815342,145.23,145.22,0.00263256]
[1749173549777,20.65705452,145.23,145.22,0.00263256]
[1749173549979,17.78675835,145.23,145.22,0.00263256]
[1749173550278,20.65640259,145.23,145.22,0.00263256]
[1749173550774,17.78675835,145.23,145.22,0.00263256]
[1749173551077,17.78125154,145.23,145.22,0.00263256]
[1749173551274,15.8888499,145.23,145.22,0.00263256]
[1749173551474,13.01937698,145.23,145.22,0.00263256]
[1749173551679,20.65072446,145.23,145.22,0.00263256]
[1749173551876,20.6490948,145.23,145.22,0.00263256]
[1749173552177,20.6492725,145.23,145.22,0.00263256]
[1749173552579,17.77961672,145.23,145.22,0.00263256]
[1749173552776,17.77960805,145.23,145.22,0.00263256]
[1749173552976,13.01937698,145.23,145.22,0.00263256]
[1749173554181,17.77947481,145.23,145.22,0.00263256]
[1749173554378,13.01937698,145.23,145.22,0.00263256]
[1749173554578,17.77947481,145.23,145.22,0.00263256]
[1749173554877,13.01937698,145.23,145.22,0.00263256]
[1749173557583,17.7698249,145.23,145.22,0.00263256]
[1749173557779,6.13697698,145.23,145.22,0.00263256]
[1749173558181,34.64,145.24,145.22,6.88523256]
[1749173558783,34.64,145.24,145.23,6.8824]
[1749173558986,40.78142707,145.24,145.23,6.8824]
[1749173559687,34.64,145.24,145.23,6.8824]
[1749173560985,40.78342889,145.24,145.22,0.00263256]
[1749173561290,6.1438397,145.23,145.22,0.00263256]
[1749173562180,13.0262397,145.23,145.22,0.00263256]
[1749173564393,6.1438397,145.23,145.22,0.00263256]
[1749173564894,22.77461524,145.23,145.22,0.00263256]
[1749173565096,18.00665712,145.23,145.22,0.00263256]
[1749173565294,22.77462215,145.23,145.22,0.00263256]
[1749173565597,18.00665712,145.23,145.22,0.00263256]
[1749173565796,6.1438397,145.23,145.22,0.00263256]
[1749173566796,34.64,145.24,145.22,0.00263256]
[1749173567196,11.12764816,145.23,145.22,0.00263256]
[1749173567897,18.01004816,145.23,145.22,0.00263256]
[1749173568295,6.14723074,145.23,145.22,0.00263256]
[1749173568798,6.14753889,145.23,145.22,0.00263256]
[1749173568994,34.64,145.24,145.22,0.00263256]
[1749173569496,6.14818941,145.23,145.22,0.00263256]
[1749173569692,6.14818941,145.23,145.22,6.88553256]
[1749173570100,34.64,145.24,145.22,6.88553256]
[1749173572294,6.14720891,145.23,145.22,6.88553256]
[1749173572996,34.64,145.24,145.22,6.88553256]
[1749173573799,6.14778891,145.23,145.22,6.88553256]
[1749173575298,6.14778891,145.23,145.22,0.00263256]
[1749173576402,6.14778891,145.23,145.22,6.88553256]
[1749173577600,6.14778891,145.23,145.22,0.00263256]
[1749173579302,20.69905474,145.23,145.22,0.00263256]
[1749173579496,27.13420875,145.23,145.22,0.00263256]
[1749173579797,20.69956177,145.23,145.22,0.00263256]
[1749173579999,6.8847,145.19,145.16,4.4307]
[1749173580200,6.14778891,145.18,145.16,4.4307]
[1749173580502,41.504,145.2,145.16,2.2888]
[1749173580803,6.28218216,145.19,145.16,2.2888]
[1749173581005,6.28218216,145.18,145.16,2.3330501]
[1749173581301,0.05256019,145.19,145.16,2.3330501]
[1749173581801,6.27819369,145.18,145.17,6.8851]
[1749173582003,6.27819369,145.18,145.16,2.3330501]
[1749173582204,6.93686019,145.19,145.16,2.3330501]
[1749173582398,6.2779474,145.18,145.16,2.3330501]
[1749173582598,6.27820967,145.17,145.16,2.3330501]
[1749173583303,0.05256019,145.19,145.16,9.2187501]
[1749173583509,6.27720757,145.18,145.16,9.2187501]
[1749173583803,0.05256019,145.19,145.16,9.2187501]
[1749173584006,6.27735753,145.18,145.16,9.2187501]
[1749173584194,0.05256019,145.19,145.16,9.2187501]
[1749173584504,6.27741574,145.18,145.16,9.2187501]
[1749173584703,6.93706019,145.19,145.16,9.2187501]
[1749173585005,6.2762345,145.18,145.16,9.2187501]
[1749173585205,0.05256019,145.19,145.16,9.2187501]
[1749173585509,6.27597811,145.18,145.16,0.0442501]
[1749173585703,6.27597811,145.17,145.16,0.0442501]
[1749173586098,13.16117811,145.17,145.16,0.0442501]
[1749173586907,18.14159553,145.17,145.16,0.0442501]
[1749173587201,15.98427086,145.17,145.08,41.92371742]
[1749173587507,6.8868,145.14,145.08,41.92371742]
[1749173587799,6.26039742,145.13,145.08,41.92371742]
[1749173588008,0.04855627,145.12,145.09,0.04882628]
[1749173588300,0.04855627,145.12,145.1,6.8882]
[1749173588500,0.04855627,145.12,145.09,0.04882628]
[1749173588904,0.04855627,145.12,145.1,4.98041742]
[1749173589704,0.04855627,145.12,145.11,6.8881]
[1749173595106,0.04855627,145.12,145.09,0.04882628]
[1749173596008,0.04855627,145.12,145.09,6.93772628]
[1749173600409,6.93625627,145.12,145.09,6.93772628]
[1749173601103,6.93625627,145.12,145.09,0.04882628]
[1749173601306,4.98041742,145.11,145.09,0.04882628]
[1749173601809,34.66855627,145.12,145.1,4.98041742]
[1749173602910,34.66855627,145.12,145.11,6.8881]
[1749173605113,0.04855627,145.12,145.11,6.8881]
[1749173605809,7.24341742,145.19,145.1,4.98041742]
[1749173606014,34.62,145.16,145.13,4.98041742]
[1749173606214,396.54,145.22,145.15,4.98041742]
[1749173606420,6.20569235,145.21,145.17,4.98041742]
[1749173606718,34.62,145.2,145.17,4.98041742]
[1749173606919,34.67217772,145.2,145.19,6.8843]
[1749173607718,34.67217772,145.2,145.19,11.86471742]
[1749173611314,34.6,145.22,145.21,6.8833]
[1749173611512,34.6,145.24,145.21,4.98041742]
[1749173611707,4.3608,145.28,145.21,4.98041742]
[1749173611708,34.6,145.25,145.21,4.98041742]
[1749173611907,34.6,145.25,145.23,6.8821]
[1749173612307,34.65279292,145.25,145.23,6.93301871]
[1749173612509,34.65279292,145.25,145.24,6.8819]
[1749173613418,34.65279292,145.25,145.23,6.93311871]
[1749173613823,34.65279292,145.25,145.23,0.05091871]
[1749173615614,0.05279292,145.25,145.23,5.03133613]
[1749173616315,0.05279292,145.25,145.24,6.8819]
[1749173618015,0.05279292,145.25,145.23,5.03133613]
[1749173618016,34.6,145.27,145.26,6.881]
[1749173618216,94.91508789,145.31,145.26,4.98041742]
[1749173618420,34.58,145.3,145.26,4.98041742]
[1749173619215,0.05114743,145.29,145.27,0.04988347]
[1749173619616,0.05114743,145.29,145.28,6.88]
[1749173619817,0.05114743,145.29,145.27,0.04988347]
[1749173620720,0.05114743,145.29,145.27,6.92998347]
[1749173621121,0.05114743,145.29,145.27,0.04988347]
[1749173621313,0.05114743,145.29,145.28,11.86041742]
[1749173621920,34.58,145.32,145.3,6.879]
[1749173622121,34.58,145.32,145.28,4.98041742]
[1749173622320,34.58,145.32,145.3,4.98041742]
[1749173622921,34.62734963,145.32,145.3,5.02412932]
[1749173623920,0.04734963,145.32,145.31,6.8786]
[1749173631018,4.963e-05,145.32,145.31,6.8786]
[1749173631424,34.56,145.37,145.3,39.58412932]
[1749173631626,34.56,145.37,145.35,4.98041742]
[1749173632025,34.56,145.37,145.36,6.8762]
[1749173632332,0.04815234,145.38,145.36,6.8762]
[1749173632522,0.04815234,145.38,145.35,0.04922392]
[1749173633030,5.02856976,145.38,145.35,0.04922392]
[1749173633229,4.98041742,145.36,145.27,34.56]
[1749173633430,34.56,145.35,145.29,4.98041742]
[1749173633631,34.56,145.35,145.32,6.8781]
[1749173634323,34.60723679,145.35,145.32,6.92859866]
[1749173634726,34.60723679,145.35,145.33,6.8775]
[1749173636531,34.60723679,145.35,145.34,6.8772]
[1749173637123,34.60723679,145.35,145.33,6.8775]
[1749173637427,34.60723679,145.35,145.32,0.05049866]
[1749173637832,34.60723679,145.35,145.32,6.92829866]
[1749173638037,34.60723679,145.35,145.32,0.05049866]
[1749173638533,34.60723679,145.35,145.33,6.8777]
[1749173640829,34.60723679,145.35,145.32,0.05049866]
[1749173641227,34.56,145.4,145.32,0.05049866]
[1749173641535,46.41481742,145.4,145.32,4.98041742]
[1749173641927,46.41481742,145.4,145.34,6.8767]
[1749173642232,0.0442586,145.38,145.36,0.04943642]
[1749173643538,0.0442586,145.38,145.26,4.3879]
[1749173643539,9.8221668,145.38,145.3,4.98041742]
[1749173643733,4.98041742,145.38,145.3,4.98041742]
[1749173643932,4.98041742,145.38,145.33,6.8775]
[1749173643933,11.85601742,145.38,145.33,6.8775]
[1749173644337,6.17787749,145.37,145.33,6.8775]
[1749173644644,34.58642074,145.36,145.34,0.04906325]
[1749173645833,39.56683816,145.36,145.34,0.04906325]
[1749173646441,6.1931169,145.35,145.34,0.04906325]
[1749173652547,11.04294363,145.35,145.34,0.04906325]
[1749173653050,13.87129119,145.35,145.34,0.04906325]
[1749173653241,6.1931169,145.35,145.34,0.04906325]
[1749173653441,13.87120088,145.35,145.34,0.04906325]
[1749173653745,11.03164837,145.35,145.34,0.04906325]
[1749173653941,6.1931169,145.35,145.34,0.04906325]
[1749173654143,11.03164837,145.35,145.34,0.04906325]
[1749173654343,13.87829867,145.35,145.34,0.04906325]
[1749173654545,11.03164837,145.35,145.34,0.04906325]